bitfinex/quotes_SOLUSD_20240725
["timestamp","ask_amount","ask_price","bid_price","bid_amount"]
[1721916963621,6.0046,166.54,166.48,6.0063]
[1721916963924,1.50116839,166.57,166.47,35.0175]
[1721916964123,31.15,166.56,166.47,15.0175]
[1721916964322,2.8898296,166.55,166.44,20.0]
[1721916964533,31.15,166.56,166.48,20.0]
[1721916964936,31.15,166.56,166.52,15.0127]
[1721916965238,37.1538,166.56,166.5,6.0059]
[1721916965444,31.15,166.56,166.48,35.0167]
[1721916965613,31.15,166.56,166.51,15.0138]
[1721916965813,31.15,166.56,166.52,6.0051]
[1721916966031,31.15,166.56,166.48,20.0]
[1721916966235,1.50119089,166.55,166.47,15.0168]
[1721916966530,37.1539,166.56,166.47,15.0168]
[1721916966716,31.15,166.56,166.5,21.0207]
[1721916966921,1.02370014,166.77,166.59,20.0]
[1721916967115,15.7817,166.79,166.68,14.9988]
[1721916967116,31.15,166.74,166.68,14.9988]
[1721916967316,22.02508602,166.79,166.69,1.199727]
[1721916967515,15.7817,166.79,166.69,1.19952993]
[1721916967717,15.7817,166.79,166.66,20.0]
[1721916967718,1.38822528,166.78,166.68,14.9987]
[1721916967938,1.38822528,166.78,166.69,1.19969666]
[1721916968240,1.38822528,166.78,166.72,5.998]
[1721916968241,7.38412528,166.78,166.72,5.998]
[1721916968418,15.7817,166.79,166.73,7.19700909]
[1721916968631,5.9955,166.8,166.74,5.9973]
[1721916968824,5.9955,166.8,166.73,21.1993721]
[1721916968825,31.15,166.81,166.7,20.0]
[1721916969027,34.03758601,166.81,166.72,5.9979]
[1721916969241,5.9968,166.76,166.7,5.9987]
[1721916969427,34.03758601,166.81,166.69,1.19962651]
[1721916969626,1.38822528,166.8,166.72,20.0]
[1721916969819,31.15,166.81,166.75,5.9969]
[1721916970215,14.9846,166.84,166.72,20.0]
[1721916970520,38.04,166.85,166.75,5.9969]
[1721916970740,5.9937,166.84,166.78,5.9958]
[1721916971050,15.2772,166.86,166.79,14.9887]
[1721916971219,15.2772,166.86,166.8,1.19876842]
[1721916971413,15.2772,166.86,166.79,14.9887]
[1721916971632,21.2705,166.86,166.8,1.19878281]
[1721916971943,15.2772,166.86,166.82,5.9943]
[1721916972147,17.0538878,166.93,166.82,1.19865278]
[1721916972444,5.9926,166.88,166.82,14.986]
[1721916972632,1.49818518,166.92,166.79,20.0]
[1721916972633,5.9931,166.86,166.79,25.9954]
[1721916972824,5.9926,166.87,166.8,25.9951]
[1721916973141,389.2,166.91,166.81,34.9868]
[1721916973337,5.992,166.89,166.82,25.9941]
[1721916973546,1.49828188,166.9,166.79,20.0]
[1721916973841,5.9922,166.89,166.82,20.0]
[1721916974223,5.9922,166.89,166.83,1.19854951]
[1721916974428,1.38822528,166.9,166.82,20.0]
[1721916974642,5.9922,166.89,166.82,5.9941]
[1721916974943,5.9924,166.88,166.82,25.9941]
[1721916975118,7.37982528,166.9,166.84,5.9937]
[1721916975545,5.9919,166.89,166.83,5.9941]
[1721916975742,5.9923,166.88,166.82,20.9797]
[1721916975956,389.2,166.91,166.83,5.9941]
[1721916976119,62.6638878,166.93,166.83,5.9941]
[1721916976322,25.9912,166.92,166.84,34.9835]
[1721916976521,5.9912,166.92,166.86,20.0]
[1721916976828,5.9912,166.91,166.86,20.0]
[1721916977038,5.9912,166.91,166.87,1.19835626]
[1721916977349,18.44211308,166.93,166.87,7.19095626]
[1721916977350,5.9909,166.92,166.87,7.19095626]
[1721916977650,5.9909,166.92,166.86,20.0]
[1721916977860,0.7743878,166.93,166.88,20.0]
[1721916978136,0.7743878,166.93,166.86,14.9819]
[1721916978341,0.7743878,166.93,166.87,5.9926]
[1721916978342,5.9909,166.92,166.87,5.9926]
[1721916978517,0.7743878,166.93,166.86,14.9819]
[1721916978841,0.7743878,166.93,166.9,5.9915]
[1721916979146,0.7743878,166.93,166.89,20.0]
[1721916979347,0.7743878,166.93,166.9,5.9915]
[1721916979634,0.7743878,166.93,166.89,5.9919]
[1721916979846,0.7743878,166.93,166.88,20.9721]
[1721916980057,0.7743878,166.93,166.89,20.0]
[1721916980223,0.7743878,166.93,166.92,20.0]
[1721916980552,0.7743878,166.93,166.9,34.9783]
[1721916980841,0.7743878,166.93,166.92,5.9908]
[1721916981237,0.7743878,166.93,166.91,5.9912]
[1721916981546,0.7743878,166.93,166.88,25.9922]
[1721916982240,0.7743878,166.93,166.88,25.9923]
[1721916982444,0.7743878,166.93,166.86,20.0]
[1721916982842,0.7743878,166.93,166.86,25.9927]
[1721916982843,5.9911,166.92,166.86,25.9927]
[1721916983043,0.7743878,166.93,166.88,20.0]
[1721916983348,0.7743878,166.93,166.9,5.9915]
[1721916983519,0.7743878,166.93,166.9,20.0]
[1721916983726,0.7743878,166.93,166.91,5.9911]
[1721916984229,0.7743878,166.93,166.9,25.9915]
[1721916984427,0.7743878,166.93,166.91,5.991]
[1721916984655,0.7743878,166.93,166.89,14.9799]
[1721916984942,6.7651878,166.93,166.88,20.0]
[1721916985249,0.7743878,166.93,166.9,20.0]
[1721916985431,0.7743878,166.93,166.9,25.9915]
[1721916985637,0.7743878,166.93,166.91,5.9911]
[1721916985944,0.7743878,166.93,166.89,14.9793]
[1721916986143,0.7743878,166.93,166.89,20.9711]
[1721916986341,0.7743878,166.93,166.9,25.9915]
[1721916986861,0.7743878,166.93,166.91,5.9911]
[1721916987147,0.7743878,166.93,166.92,5.9908]
[1721916987348,0.7743878,166.93,166.92,25.9908]
[1721916987656,0.7743878,166.93,166.92,20.0]
[1721916988336,0.7743878,166.93,166.89,40.9712]
[1721916988542,0.7743878,166.93,166.9,20.0]
[1721916988758,0.7743878,166.93,166.9,25.9915]
[1721916989243,0.7743878,166.93,166.92,25.9908]
[1721916989462,0.7743878,166.93,166.92,20.0]
[1721916989761,0.7743878,166.93,166.9,20.0]
[1721916989944,0.7743878,166.93,166.92,20.0]
[1721916990145,0.7743878,166.93,166.9,40.0]
[1721916990364,0.7743878,166.93,166.92,20.0]
[1721916990762,0.7743878,166.93,166.92,40.968]
[1721916991254,0.7743878,166.93,166.92,87.16583047]
[1721916991433,0.7743878,166.93,166.92,85.968]
[1721916991629,0.7743878,166.93,166.92,105.968]
[1721916991846,0.7743878,166.93,166.92,107.16579408]
[1721916992044,0.7743878,166.93,166.92,105.968]
[1721916992265,0.7743878,166.93,166.9,20.0]
[1721916992478,0.7743878,166.93,166.9,25.9916]
[1721916992761,0.7743878,166.93,166.91,20.0]
[1721916992931,0.7743878,166.93,166.92,25.9908]
[1721916993131,0.7743878,166.93,166.92,27.1886493]
[1721916993346,0.7743878,166.93,166.92,5.9908]
[1721916993666,0.7743878,166.93,166.92,25.9908]
[1721916993963,0.7743878,166.93,166.92,110.9908]
[1721916994135,0.7743878,166.93,166.92,65.9908]
[1721916994466,0.7743878,166.93,166.92,90.9908]
[1721916995046,0.7743878,166.93,166.92,92.18850942]
[1721916995560,15.9569,167.06,166.99,20.0]
[1721916995732,5.9863,167.05,167.0,14.9697]
[1721916995942,15.9569,167.06,167.01,25.9874]
[1721916996236,21.9427,167.06,167.01,25.9874]
[1721916996636,15.9569,167.06,167.02,14.9674]
[1721916996837,15.9569,167.06,167.02,20.9546]
[1721916997137,53.839,167.12,167.07,5.9854]
[1721916997345,16.559,167.12,167.08,5.985]
[1721916997654,53.839,167.12,167.02,20.0]
[1721916997840,5.986,167.06,167.02,20.0]
[1721916998259,0.7743878,167.1,167.02,34.9675]
[1721916998574,5.9855,167.07,167.02,14.9675]
[1721916998861,5.9869,167.04,166.98,34.9712]
[1721916999063,37.28,167.08,166.99,20.0]
[1721916999387,37.28,167.08,166.99,25.9883]
[1721916999542,5.9872,167.03,166.98,34.9712]
[1721916999749,5.9875,167.02,166.96,25.9891]
[1721916999948,441.4437,167.08,166.98,25.9884]
[1721917000162,441.4437,167.08,167.0,25.9878]
[1721917000163,5.9862,167.06,167.0,25.9878]
[1721917000343,426.48,167.08,167.0,20.0]
[1721917000542,432.4652,167.08,167.02,14.9675]
[1721917000737,389.2,167.08,167.03,5.9868]
[1721917000942,389.2,167.08,167.02,14.9675]
[1721917001260,389.2,167.08,167.04,14.9658]
[1721917001439,389.2,167.08,167.04,20.9523]
[1721917001635,6.7590878,167.1,167.04,20.9523]
[1721917001855,5.9848,167.09,167.05,20.0]
[1721917002064,5.9853,167.08,167.03,20.0]
[1721917002245,5.9855,167.07,167.01,34.969]
[1721917002448,5.9863,167.05,166.99,25.9882]
[1721917002642,0.7743878,167.1,167.01,20.0]
[1721917002866,5.9858,167.07,167.01,20.0]
[1721917003067,0.7743878,167.1,167.04,20.0]
[1721917003367,6.7587878,167.1,167.04,25.9865]
[1721917003670,0.7743878,167.1,167.06,5.9858]
[1721917003841,0.7743878,167.1,167.06,25.9855]
[1721917004036,0.7743878,167.1,167.05,14.9648]
[1721917004564,0.7743878,167.1,167.03,5.9866]
[1721917004565,5.9849,167.09,167.03,5.9866]
[1721917004872,5.9851,167.08,167.02,25.9869]
[1721917005050,5.9848,167.09,167.04,20.0]
[1721917005365,5.9852,167.08,167.03,5.9868]
[1721917005563,5.9869,167.04,167.0,20.0]
[1721917005735,0.7743878,167.1,167.01,20.0]
[1721917005942,0.7743878,167.1,167.01,34.9683]
[1721917005943,5.9858,167.06,167.01,34.9683]
[1721917006147,5.9862,167.05,166.99,20.0]
[1721917006444,2.27095575,167.1,166.99,20.0]
[1721917006445,5.9858,167.06,166.99,20.0]
[1721917006641,5.9858,167.06,167.0,5.9879]
[1721917006840,5.9858,167.06,167.0,5.8013487]
[1721917007251,5.9855,167.07,167.01,25.9875]
[1721917007654,0.7743878,167.1,167.03,5.9868]
[1721917007851,0.7743878,167.1,167.02,5.9872]
[1721917007852,5.9857,167.07,167.02,5.9872]
[1721917008144,5.9849,167.09,167.04,5.9865]
[1721917008337,5.9849,167.09,167.03,25.9868]
[1721917008856,5.9853,167.08,167.03,5.9868]
[1721917009443,5.9848,167.09,167.03,5.9868]
[1721917009839,5.9859,167.06,167.02,14.9674]
[1721917010063,5.9855,167.07,167.02,20.9545]
[1721917010570,5.9848,167.09,167.03,25.9869]
[1721917010769,5.9848,167.09,167.04,5.9864]
[1721917011139,5.9848,167.09,167.03,25.9868]
[1721917011343,0.7743878,167.1,167.06,20.0]
[1721917011657,0.7743878,167.1,167.04,79.966]
[1721917011854,0.7743878,167.1,167.04,34.966]
[1721917012057,0.7743878,167.1,167.05,5.9861]
[1721917012251,0.7743878,167.1,167.07,5.9854]
[1721917012463,0.7743878,167.1,167.07,14.9634]
[1721917012660,0.7743878,167.1,167.08,5.985]
[1721917013165,0.7743878,167.1,167.08,25.9851]
[1721917013766,0.7743878,167.1,167.07,14.9634]
[1721917014270,0.7743878,167.1,167.09,25.9847]
[1721917014457,0.7743878,167.1,167.09,47.18117912]
[1721917015043,0.7743878,167.1,167.09,5.9847]
[1721917015255,0.7743878,167.1,167.09,25.9847]
[1721917015766,0.7743878,167.1,167.09,70.9847]
[1721917015977,0.7743878,167.1,167.09,5.9847]
[1721917017374,0.7743878,167.1,167.09,50.9847]
[1721917018564,0.7743878,167.1,167.09,5.9847]
[1721917018955,0.7743878,167.1,167.08,25.985]
[1721917019157,0.7743878,167.1,167.08,20.0]
[1721917019575,0.7743878,167.1,167.08,25.9851]
[1721917019759,6.7588878,167.1,167.04,20.0]
[1721917020075,6.7588878,167.1,167.03,14.9666]
[1721917020076,7.48103576,167.09,167.03,14.9666]
[1721917020249,7.48103576,167.09,166.99,34.9706]
[1721917020250,1.49623576,167.09,166.99,34.9706]
[1721917020450,38.0543878,167.1,167.03,20.0]
[1721917020676,38.0543878,167.1,167.0,30.0]
[1721917020677,38.0543878,167.1,167.02,21.19709383]
[1721917020875,0.7743878,167.1,167.05,20.0]
[1721917021168,0.7743878,167.1,167.09,5.9847]
[1721917021560,0.7743878,167.1,167.09,25.9847]
[1721917021889,0.7743878,167.1,167.09,5.9847]
[1721917022076,0.7743878,167.1,167.06,20.0]
[1721917022255,0.7743878,167.1,167.09,5.9847]
[1721917022455,0.7743878,167.1,167.06,20.0]
[1721917022964,0.7743878,167.1,167.08,5.9848]
[1721917023172,0.7743878,167.1,167.06,14.964]
[1721917023559,0.7743878,167.1,167.06,34.964]
[1721917023769,0.7743878,167.1,167.09,5.9847]
[1721917023968,0.7743878,167.1,167.08,14.9621]
[1721917024379,0.7743878,167.1,167.09,5.9847]
[1721917024563,0.7743878,167.1,167.08,20.9471]
[1721917024875,0.7743878,167.1,167.09,5.9847]
[1721917025078,0.7743878,167.1,167.08,40.9472]
[1721917025281,0.7743878,167.1,167.09,5.9847]
[1721917025458,0.7743878,167.1,167.09,6.3017]
[1721917025668,5.982,167.17,167.11,20.0]
[1721917025979,30.6694878,167.26,167.16,25.9819]
[1721917025980,1.49547414,167.25,167.16,25.9819]
[1721917026161,6.7530878,167.26,167.21,5.9803]
[1721917026356,8.24826964,167.26,167.2,20.9322]
[1721917026560,5.9801,167.23,167.18,20.0]
[1721917026985,5.9795,167.24,167.18,25.9813]
[1721917027165,5.9795,167.24,167.19,5.9811]
[1721917027364,0.7743878,167.26,167.18,5.9815]
[1721917027559,2.26962314,167.26,167.18,5.0832]
[1721917027882,2.26962314,167.26,167.19,5.9811]
[1721917028186,5.9792,167.25,167.19,5.9811]
[1721917028480,1.49507468,167.24,167.18,20.0]
[1721917028673,5.9805,167.21,167.15,20.9389]
[1721917028985,37.28,167.25,167.18,34.9539]
[1721917029182,5.9798,167.23,167.18,14.9539]
[1721917029357,1.49506017,167.24,167.18,14.9539]
[1721917029865,1.4951642,167.23,167.18,20.9354]
[1721917030176,5.9797,167.24,167.19,5.9811]
[1721917030385,37.28,167.25,167.19,5.9811]
[1721917030386,44.75425158,167.25,167.19,5.9811]
[1721917030569,38.77515158,167.25,167.18,20.9354]
[1721917030988,44.75455158,167.25,167.19,5.9811]
[1721917031287,5.9795,167.24,167.18,20.9354]
[1721917031463,43.259,167.25,167.18,14.9539]
[1721917031670,43.2592,167.25,167.2,5.9808]
[1721917031859,0.7743878,167.26,167.18,20.0]
[1721917032062,5.9793,167.25,167.19,14.9521]
[1721917032277,7.47448516,167.24,167.19,20.9332]
[1721917032481,5.9791,167.25,167.2,5.9807]
[1721917032680,0.7743878,167.26,167.21,5.9804]
[1721917033186,0.7743878,167.26,167.19,20.9332]
[1721917033484,5.9794,167.24,167.19,14.9521]
[1721917033781,0.7743878,167.26,167.2,5.9805]
[1721917034169,6.7530878,167.26,167.2,5.9805]
[1721917034387,8.24813113,167.26,167.2,5.9805]
[1721917034563,6.7530878,167.26,167.2,5.9805]
[1721917034772,8.24813079,167.26,167.2,5.9805]
[1721917034991,6.7530878,167.26,167.2,5.9805]
[1721917035158,5.9791,167.25,167.2,5.9805]
[1721917035362,5.9804,167.22,167.16,14.9556]
[1721917035565,38.0543878,167.26,167.14,5.9827]
[1721917035566,5.9809,167.2,167.14,5.9827]
[1721917035787,5.9809,167.2,167.14,5.9829]
[1721917035988,1.49551705,167.25,167.14,14.9566]
[1721917036163,389.2,167.24,167.14,20.9395]
[1721917036368,5.9803,167.22,167.16,5.9822]
[1721917036674,5.9803,167.22,167.14,34.9566]
[1721917036989,389.2,167.24,167.17,5.9816]
[1721917037189,395.1794,167.24,167.17,14.9548]
[1721917037689,38.0543878,167.26,167.2,14.952]
[1721917037882,0.7743878,167.26,167.22,14.9495]
[1721917038083,0.7743878,167.26,167.22,20.9293]
[1721917038281,0.7743878,167.26,167.21,5.9804]
[1721917038480,0.7743878,167.26,167.23,5.9796]
[1721917038802,0.7743878,167.26,167.25,32.4324]
[1721917039086,5.9734,167.41,167.35,5.9753]
[1721917039266,5.9734,167.41,167.31,40.0]
[1721917039267,0.7743878,167.43,167.32,1.19511387]
[1721917039463,0.7743878,167.43,167.41,5.9733]
[1721917039662,0.7743878,167.43,167.4,20.0]
[1721917039973,0.7743878,167.43,167.4,21.19443152]
[1721917040170,0.7743878,167.43,167.42,25.973]
[1721917040368,0.7743878,167.43,167.42,72.16718661]
[1721917040573,0.7743878,167.43,167.42,70.973]
[1721917040771,0.9679,167.52,167.48,20.0]
[1721917040980,0.9679,167.52,167.51,5.9697]
[1721917041290,0.9679,167.52,167.51,25.9697]
[1721917041471,0.9679,167.52,167.48,6.282]
[1721917041664,0.9679,167.52,167.47,20.0]
[1721917041870,0.9679,167.52,167.51,25.9697]
[1721917042107,0.9679,167.52,167.51,45.9697]
[1721917042395,0.9679,167.52,167.51,90.9697]
[1721917042596,0.9679,167.52,167.51,110.9697]
[1721917042889,0.9679,167.52,167.51,112.16323766]
[1721917043694,0.9679,167.52,167.51,90.9697]
[1721917043995,0.9679,167.52,167.51,110.9697]
[1721917044288,0.9679,167.52,167.51,25.9697]
[1721917044491,0.9679,167.52,167.49,20.0]
[1721917044684,0.9679,167.52,167.51,5.9697]
[1721917045484,0.9679,167.52,167.49,34.9259]
[1721917045485,0.9679,167.52,167.49,40.8963]
[1721917045675,0.9679,167.52,167.47,20.0]
[1721917045890,0.9679,167.52,167.44,14.9303]
[1721917046072,0.9679,167.52,167.43,20.0]
[1721917046273,0.9679,167.52,167.43,34.9311]
[1721917046493,0.9679,167.52,167.49,14.9262]
[1721917046688,0.9679,167.52,167.44,1.19409854]
[1721917046689,0.9679,167.52,167.47,20.0]
[1721917046904,0.9679,167.52,167.49,5.9704]
[1721917047096,0.9679,167.52,167.5,5.97]
[1721917047388,0.9679,167.52,167.48,14.927]
[1721917047389,0.9679,167.52,167.51,20.8941]
[1721917047585,0.9679,167.52,167.47,21.19376276]
[1721917047789,0.9679,167.52,167.47,14.9275]
[1721917048093,0.9679,167.52,167.5,25.9699]
[1721917048314,0.9679,167.52,167.51,7.16346304]
[1721917048684,0.9679,167.52,167.5,20.0]
[1721917049123,0.9679,167.52,167.51,5.9697]
[1721917049426,0.9679,167.52,167.51,4.9467]
[1721917049586,0.9679,167.52,167.51,24.9467]
[1721917049791,0.9679,167.52,167.5,20.0]
[1721917049994,0.9679,167.52,167.49,14.9254]
[1721917050308,1.49251803,167.51,167.42,20.0]
[1721917050509,5.9704,167.5,167.43,5.9723]
[1721917050688,7.46251803,167.51,167.44,5.9721]
[1721917050883,7.46251803,167.51,167.43,14.9315]
[1721917050884,390.69283603,167.51,167.4,25.9736]
[1721917051092,14.9254,167.5,167.36,25.9747]
[1721917051319,14.9254,167.5,167.36,40.9123]
[1721917051320,46.49336627,167.49,167.36,40.9123]
[1721917051509,16.4273,167.5,167.36,40.9123]
[1721917051510,5.9723,167.44,167.38,20.0]
[1721917051688,389.2,167.49,167.4,20.0]
[1721917051891,389.2,167.49,167.42,20.0]
[1721917052291,5.9708,167.48,167.41,40.9055]
[1721917052501,5.9715,167.47,167.42,5.973]
[1721917052898,5.9709,167.48,167.43,5.9725]
[1721917053304,389.2,167.49,167.44,5.9721]
[1721917053522,389.2,167.49,167.46,5.9715]
[1721917053716,0.9679,167.52,167.46,5.9715]
[1721917053912,2.46055952,167.52,167.43,34.9308]
[1721917054111,2.46055952,167.52,167.43,14.9308]
[1721917054417,0.9679,167.52,167.47,20.0]
[1721917054601,5.9698,167.51,167.47,20.0]
[1721917054805,0.9679,167.52,167.44,5.9721]
[1721917055003,5.9705,167.49,167.43,20.0]
[1721917055223,0.9679,167.52,167.43,20.0]
[1721917055520,0.9679,167.52,167.42,14.9322]
[1721917055827,2.46068634,167.52,167.43,40.0]
[1721917056209,0.9679,167.52,167.43,40.0]
[1721917056528,5.97,167.51,167.45,20.0]
[1721917056711,0.9679,167.52,167.46,5.9714]
[1721917056914,0.9679,167.52,167.46,5.9715]
[1721917056915,6.9376,167.52,167.46,5.9715]
[1721917057100,1.49260156,167.51,167.43,20.0]
[1721917057416,5.9702,167.5,167.43,14.9308]
[1721917057622,5.9707,167.49,167.43,20.9031]
[1721917057803,5.9709,167.48,167.43,20.9031]
[1721917058126,5.9705,167.49,167.43,14.9308]
[1721917058304,0.9679,167.52,167.43,14.9308]
[1721917058503,5.97,167.51,167.45,5.9718]
[1721917058697,0.9679,167.52,167.45,14.929]
[1721917059205,5.9712,167.47,167.41,14.9332]
[1721917059408,5.9706,167.49,167.43,5.9725]
[1721917059601,14.926,167.5,167.4,20.0]
[1721917059804,5.9716,167.46,167.41,25.9732]
[1721917060018,15.6878,167.46,167.36,20.0]
[1721917060223,1.4932698,167.45,167.39,14.9348]
[1721917060404,15.6878,167.46,167.42,14.9324]
[1721917060606,389.2,167.48,167.45,5.9718]
[1721917060811,16.4497,167.52,167.5,5.9701]
[1721917061115,0.9679,167.52,167.48,5.9705]
[1721917061315,0.9679,167.52,167.5,14.9249]
[1721917061509,0.9679,167.52,167.5,34.9249]
[1721917061719,0.9679,167.52,167.51,5.9697]
[1721917062027,0.9679,167.52,167.5,14.9249]
[1721917062404,0.9679,167.52,167.48,5.9707]
[1721917062600,0.9679,167.52,167.47,14.9279]
[1721917063099,0.9679,167.52,167.5,5.9698]
[1721917063302,0.9679,167.52,167.49,14.9256]
[1721917063516,0.9679,167.52,167.49,34.9256]
[1721917063825,0.9679,167.52,167.49,20.896]
[1721917064029,0.9679,167.52,167.49,34.9256]
[1721917064318,0.9679,167.52,167.51,25.9697]
[1721917064926,0.9679,167.52,167.51,45.9697]
[1721917065729,0.7743878,167.59,167.58,40.8854]
[1721917066432,2.16261308,167.59,167.58,40.8854]
[1721917066955,0.7743878,167.59,167.58,62.07835048]
[1721917067339,8.78e-05,167.59,167.58,62.07835048]
[1721917068223,404.8249,167.75,167.65,54.9112]
[1721917068423,1.38822528,167.74,167.67,20.0]
[1721917068724,7.34982528,167.74,167.68,1.19254795]
[1721917068928,1.38822528,167.74,167.7,5.9628]
[1721917069815,1.38822528,167.74,167.68,1.19254795]
[1721917070016,1.87953628,167.74,167.69,20.0]
[1721917070217,1.87953628,167.74,167.69,34.9077]
[1721917070418,1.87953628,167.74,167.7,7.15535748]
[1721917070633,1.87953628,167.74,167.71,1.19237107]
[1721917070841,1.87953628,167.74,167.71,34.906]
[1721917071049,1.87953628,167.74,167.72,5.962]
[1721917071243,1.87953628,167.74,167.71,34.906]
[1721917071435,1.87953628,167.74,167.71,14.906]
[1721917071635,5.9627,167.71,167.66,5.9642]
[1721917071842,5.9627,167.71,167.64,34.9126]
[1721917072156,1.49083777,167.73,167.61,20.0]
[1721917072352,15.3248,167.69,167.6,14.9156]
[1721917072549,15.3248,167.69,167.59,41.19300899]
[1721917072731,30.2334,167.69,167.59,20.0]
[1721917072925,5.9652,167.64,167.59,27.15959997]
[1721917073229,5.9652,167.64,167.58,14.9174]
[1721917073434,5.9645,167.66,167.61,14.9154]
[1721917073639,5.9644,167.67,167.61,5.966]
[1721917073850,1.49138563,167.67,167.58,14.918]
[1721917074045,5.9663,167.61,167.56,20.0]
[1721917074424,5.9659,167.62,167.56,25.9678]
[1721917074749,5.9658,167.63,167.58,20.0]
[1721917074926,389.2,167.68,167.53,20.0]
[1721917074927,1.49142135,167.67,167.56,20.0]
[1721917075242,5.9652,167.64,167.58,20.8851]
[1721917075628,1.49160767,167.63,167.54,34.9212]
[1721917075827,5.9668,167.6,167.54,14.9212]
[1721917076047,5.9662,167.61,167.54,34.9212]
[1721917076249,1.49184322,167.64,167.54,34.9212]
[1721917076436,389.2,167.66,167.56,14.9192]
[1721917076958,1.49160004,167.65,167.56,14.9192]
[1721917077162,5.9666,167.6,167.54,5.9684]
[1721917077452,5.9656,167.63,167.57,5.9675]
[1721917077632,5.9663,167.61,167.56,5.9676]
[1721917077827,15.3248,167.69,167.59,20.0]
[1721917078028,15.3248,167.69,167.63,5.9654]
[1721917078248,15.3248,167.69,167.64,7.15781]
[1721917078458,5.9644,167.67,167.62,14.9145]
[1721917078636,5.9644,167.67,167.53,29.844]
[1721917078637,16.81604563,167.69,167.58,34.9173]
[1721917078843,1.49124563,167.67,167.55,20.0]
[1721917079166,389.2,167.68,167.58,25.9669]
[1721917079167,5.965,167.65,167.58,25.9669]
[1721917079630,5.965,167.65,167.58,34.9175]
[1721917079831,15.3248,167.69,167.61,20.0]
[1721917080336,5.9642,167.67,167.61,25.9661]
[1721917080540,5.9648,167.65,167.61,20.0]
[1721917080742,5.9652,167.64,167.59,20.0]
[1721917080955,5.9648,167.65,167.59,25.9668]
[1721917081341,15.3248,167.69,167.61,5.9661]
[1721917081536,15.3248,167.69,167.63,20.0]
[1721917081860,15.3248,167.69,167.65,14.9111]
[1721917082030,15.3248,167.69,167.62,20.88]
[1721917082225,5.9637,167.68,167.62,20.88]
[1721917082428,15.3248,167.69,167.64,5.9651]
[1721917082658,15.3248,167.69,167.62,14.9145]
[1721917082844,15.3248,167.69,167.65,5.9644]
[1721917083041,15.395311,167.74,167.66,20.0]
[1721917083042,0.491311,167.74,167.66,20.0]
[1721917083559,1.98204026,167.74,167.66,20.0]
[1721917083745,5.9623,167.72,167.67,5.964]
[1721917083950,1.98204026,167.74,167.65,14.9118]
[1721917084134,5.9634,167.69,167.63,5.9654]
[1721917084339,1.49102382,167.73,167.62,20.0]
[1721917084539,5.9632,167.7,167.64,5.9651]
[1721917084746,5.962,167.73,167.67,5.9637]
[1721917085058,0.491311,167.73,167.69,14.9083]
[1721917085351,0.491311,167.73,167.71,5.9626]
[1721917085564,0.491311,167.73,167.7,5.9629]
[1721917085757,0.491311,167.73,167.72,14.9057]
[1721917086346,0.491311,167.73,167.72,20.868]
[1721917086744,0.491311,167.73,167.72,40.868]
[1721917086943,0.491311,167.73,167.72,60.868]
[1721917087170,0.491311,167.73,167.72,20.868]
[1721917087467,0.491311,167.73,167.68,20.0]
[1721917087762,0.491311,167.73,167.7,14.9068]
[1721917088147,0.491311,167.73,167.7,20.8697]
[1721917088342,0.491311,167.73,167.68,5.9633]
[1721917088651,0.491311,167.73,167.71,5.9623]
[1721917088850,0.491311,167.73,167.69,14.9076]
[1721917089547,0.491311,167.73,167.7,5.9629]
[1721917089743,0.491311,167.73,167.66,14.911]
[1721917090046,5.9624,167.72,167.66,14.911]
[1721917090253,0.491311,167.73,167.68,34.9085]